fUSD/lending_fUSD_20250217
["ID","MTS","AMOUNT","RATE_DAILY","PERIOD"]
[353401206,1739815866637,-500.0,0.00014109,2]
[353401207,1739815866647,-500.0,0.00014109,2]
[353401208,1739815866661,-500.0,0.00014109,2]
[353401209,1739815866670,-500.0,0.00014109,2]
[353401210,1739815866681,-879.53,0.00014109,2]
[353401211,1739815866690,-500.0,0.00014109,2]
[353401212,1739815866702,-872.31,0.00014109,2]
[353401213,1739815866711,-500.0,0.00014109,2]
[353401214,1739815866722,-500.0,0.00014109,2]
[353401215,1739815866733,-500.0,0.00014109,2]
[353401216,1739815866745,-548.33,0.00014109,2]
[353401217,1739815866755,-502.61,0.00014109,2]
[353401218,1739815866764,-884.35,0.00014109,2]
[353401219,1739815866773,-527.868759,0.00014109,2]
[353401220,1739815866782,-630.35,0.00014109,2]
[353401221,1739815866791,-507.26,0.00014109,2]
[353401222,1739815866805,-1128.77,0.00014109,2]
[353401223,1739815866814,-634.82902695,0.00014109,2]
[353401224,1739815866824,-500.0,0.00014109,2]
[353401225,1739815866834,-689.9,0.00014109,2]
[353401226,1739815866844,-648.24,0.00014109,2]
[353401227,1739815866855,-500.0,0.00014109,2]
[353401228,1739815866867,-500.0,0.00014109,2]
[353401229,1739815866878,-504.07,0.00014109,2]
[353401230,1739815866890,-500.0,0.00014109,2]
[353401231,1739815866901,-500.0,0.00014109,2]
[353401232,1739815866912,-500.0,0.00014109,2]
[353401233,1739815866922,-610.26,0.00014109,2]
[353401234,1739815866932,-500.0,0.00014109,2]
[353401235,1739815866942,-500.0,0.00014109,2]
[353401236,1739815866952,-500.0,0.00014109,2]
[353401237,1739815866961,-500.0,0.00014109,2]
[353401238,1739815866971,-465.181699,0.00014109,2]
[353401239,1739815866980,-500.0,0.00014109,2]
[353401240,1739815866990,-555.52314259,0.00014109,2]
[353401241,1739815866999,-500.0,0.00014109,2]
[353401242,1739815867009,-500.0,0.00014109,2]
[353401243,1739815867019,-500.0,0.00014109,2]
[353401244,1739815867029,-500.0,0.00014109,2]
[353401245,1739815867039,-500.0,0.00014109,2]
[353401246,1739815867051,-500.0,0.00014109,2]
[353401247,1739815867061,-500.0,0.00014109,2]
[353401248,1739815867070,-248.07,0.00014109,2]
[353401249,1739815867079,-560.89,0.00014109,2]
[353401250,1739815867089,-500.0,0.00014109,2]
[353401251,1739815867098,-500.0,0.00014109,2]
[353401252,1739815867108,-779.36,0.00014109,2]
[353401253,1739815867117,-500.0,0.00014109,2]
[353401254,1739815867126,-349.33,0.00014109,2]
[353401255,1739815867136,-511.33,0.00014109,2]
[353401256,1739815867145,-500.0,0.00014109,2]
[353401257,1739815867155,-500.0,0.00014109,2]
[353401258,1739815867164,-500.0,0.00014109,2]
[353401259,1739815867174,-500.0,0.00014109,2]
[353401260,1739815867184,-723.45,0.00014109,2]
[353401261,1739815867194,-826.0,0.00014109,2]
[353401262,1739815867204,-500.0,0.00014109,2]
[353401263,1739815867214,-500.0,0.00014109,2]
[353401264,1739815867224,-500.0,0.00014109,2]
[353401265,1739815867234,-500.0,0.00014109,2]
[353401266,1739815867244,-500.0,0.00014109,2]
[353401267,1739815867254,-500.0,0.00014109,2]
[353401268,1739815867264,-500.0,0.00014109,2]
[353401269,1739815867274,-500.0,0.00014109,2]
[353401270,1739815867284,-551.82,0.00014109,2]
[353401271,1739815867293,-500.0,0.00014109,2]
[353401272,1739815867305,-775.48,0.00014109,2]
[353401273,1739815867315,-500.0,0.00014109,2]
[353401274,1739815867324,-676.02,0.00014109,2]
[353401275,1739815867335,-799.13,0.00014109,2]
[353401276,1739815867345,-500.0,0.00014109,2]
[353401277,1739815867355,-500.0,0.00014109,2]
[353401278,1739815867366,-500.0,0.00014109,2]
[353401279,1739815867375,-697.45,0.00014109,2]
[353401280,1739815867385,-527.52,0.00014109,2]
[353401281,1739815867395,-634.13,0.00014109,2]
[353401282,1739815867406,-330.55,0.00014109,2]
[353401283,1739815867417,-500.0,0.00014109,2]
[353401284,1739815867427,-1087.97,0.00014109,2]
[353401285,1739815867439,-781.6,0.00014109,2]
[353401286,1739815867449,-500.0,0.00014109,2]
[353401287,1739815867459,-642.47,0.00014109,2]
[353401288,1739815867469,-500.0,0.00014109,2]
[353401289,1739815867479,-646.88,0.00014109,2]
[353401290,1739815867490,-500.0,0.00014109,2]
[353401291,1739815867500,-627.97,0.00014109,2]
[353401292,1739815867511,-500.0,0.00014109,2]
[353401293,1739815867523,-877.35,0.00014109,2]
[353401294,1739815867535,-500.0,0.00014109,2]
[353401295,1739815867545,-501.93,0.00014109,2]
[353401296,1739815867556,-2021.69,0.00014109,2]
[353401297,1739815867566,-500.0,0.00014109,2]
[353401298,1739815867576,-804.35,0.00014109,2]
[353401299,1739815867586,-1178.4,0.00014109,2]
[353401300,1739815867595,-2424.8,0.00014109,2]
[353401301,1739815867605,-713.08,0.00014109,2]
[353401302,1739815867615,-902.8,0.00014109,2]
[353401303,1739815867624,-500.0,0.00014109,2]
[353401304,1739815867634,-1659.27,0.00014109,2]
[353401305,1739815867644,-854.28,0.00014109,2]
[353401306,1739815867654,-707.88,0.00014109,2]
[353401307,1739815867667,-772.93,0.00014109,2]
[353401308,1739815867677,-500.0,0.00014109,2]
[353401309,1739815867687,-1197.12,0.00014109,2]
[353401310,1739815867696,-152.258352,0.00014109,2]
[353401311,1739815867707,-1865.74,0.00014109,2]
[353401312,1739815867717,-953.23,0.00014109,2]
[353401313,1739815867728,-500.0,0.00014109,2]
[353401314,1739815867740,-500.0,0.00014109,2]
[353401315,1739815867750,-565.36,0.00014109,2]
[353401316,1739815867760,-2885.55,0.00014109,2]
[353401317,1739815867770,-973.56,0.00014109,2]
[353401318,1739815867781,-803.15,0.00014109,2]
[353401319,1739815867791,-1385.68,0.00014109,2]
[353401320,1739815867803,-974.48,0.00014109,2]
[353401321,1739815867813,-816.48,0.00014109,2]
[353401322,1739815867823,-500.0,0.00014109,2]
[353401323,1739815867832,-922.79,0.00014109,2]
[353401324,1739815867842,-585.62,0.00014109,2]
[353401325,1739815867851,-500.0,0.00014109,2]
[353401326,1739815867861,-3073.59,0.00014109,2]
[353401327,1739815867870,-597.4,0.00014109,2]
[353401328,1739815867879,-1321.54,0.00014109,2]
[353401329,1739815867889,-1131.49,0.00014109,2]
[353401330,1739815867898,-500.0,0.00014109,2]
[353401331,1739815867908,-500.0,0.00014109,2]
[353401332,1739815867917,-1395.94,0.00014109,2]
[353401333,1739815867927,-500.0,0.00014109,2]
[353401334,1739815867936,-1265.98,0.00014109,2]
[353401335,1739815867946,-500.0,0.00014109,2]
[353401336,1739815867955,-500.0,0.00014109,2]
[353401337,1739815867965,-500.0,0.00014109,2]
[353401338,1739815867974,-1422.73,0.00014109,2]
[353401339,1739815867984,-1473.58,0.00014109,2]
[353401340,1739815867993,-1479.13,0.00014109,2]
[353401341,1739815868003,-500.0,0.00014109,2]
[353401342,1739815868012,-1202.26,0.00014109,2]
[353401343,1739815868021,-1748.85,0.00014109,2]
[353401344,1739815868031,-1547.54,0.00014109,2]
[353401345,1739815868041,-2001.49,0.00014109,2]
[353401346,1739815868052,-500.0,0.00014109,2]
[353401347,1739815868062,-500.0,0.00014109,2]
[353401348,1739815868072,-1175.35,0.00014109,2]
[353401349,1739815868082,-2574.83,0.00014109,2]
[353401350,1739815868091,-1101.2,0.00014109,2]
[353401351,1739815868101,-500.0,0.00014109,2]
[353401352,1739815868110,-1324.81,0.00014109,2]
[353401353,1739815868120,-1077.14,0.00014109,2]
[353401354,1739815868129,-1691.48,0.00014109,2]
[353401355,1739815868139,-1466.29,0.00014109,2]
[353401356,1739815868149,-1601.82,0.00014109,2]
[353401357,1739815868158,-525.21,0.00014109,2]
[353401358,1739815868168,-1698.43,0.00014109,2]
[353401359,1739815868178,-500.0,0.00014109,2]
[353401360,1739815868187,-500.0,0.00014109,2]
[353401361,1739815868197,-1051.07,0.00014109,2]
[353401362,1739815868207,-1893.07,0.00014109,2]
[353401363,1739815868217,-1434.34,0.00014109,2]
[353401364,1739815868227,-1559.87,0.00014109,2]
[353401365,1739815868236,-4247.72,0.00014109,2]
[353401366,1739815868246,-500.0,0.00014109,2]
[353401367,1739815868256,-697.24,0.00014109,2]
[353401368,1739815868266,-500.0,0.00014109,2]
[353401369,1739815868276,-1490.44,0.00014109,2]
[353401370,1739815868286,-500.0,0.00014109,2]
[353401371,1739815868300,-2043.08,0.00014109,2]
[353401372,1739815868310,-1242.96,0.00014109,2]
[353401373,1739815868319,-500.0,0.00014109,2]
[353401374,1739815868329,-794.8,0.00014109,2]
[353401375,1739815868342,-500.0,0.00014109,2]
[353401376,1739815868352,-1947.34,0.00014109,2]
[353401377,1739815868361,-500.0,0.00014109,2]
[353401378,1739815868371,-1505.04,0.00014109,2]
[353401379,1739815868381,-1445.54,0.00014109,2]
[353401380,1739815868397,-500.0,0.00014109,2]
[353401381,1739815868406,-1114.18,0.00014109,2]
[353401382,1739815868416,-2020.29,0.00014109,2]
[353401383,1739815868426,-845.62,0.00014109,2]
[353401384,1739815868436,-500.0,0.00014109,2]
[353401385,1739815868446,-749.69,0.00014109,2]
[353401386,1739815868455,-776.01,0.00014109,2]
[353401387,1739815868466,-832.24,0.00014109,2]
[353401388,1739815868476,-504.07,0.00014109,2]
[353401389,1739815868486,-500.0,0.00014109,2]
[353401390,1739815868496,-3601.82,0.00014109,2]
[353401391,1739815868506,-500.0,0.00014109,2]
[353401392,1739815868515,-1526.53,0.00014109,2]
[353401393,1739815868525,-1081.38,0.00014109,2]
[353401394,1739815868534,-1272.95,0.00014109,2]
[353401395,1739815868544,-704.58,0.00014109,2]
[353401396,1739815868556,-691.58,0.00014109,2]
[353401397,1739815868566,-500.0,0.00014109,2]
[353401398,1739815868576,-992.78,0.00014109,2]
[353401399,1739815868585,-596.73,0.00014109,2]
[353401400,1739815868595,-500.0,0.00014109,2]
[353401401,1739815868605,-2407.6,0.00014109,2]
[353401402,1739815868615,-500.0,0.00014109,2]
[353401403,1739815868624,-1300.23,0.00014109,2]
[353401404,1739815868636,-1392.59,0.00014109,2]
[353401405,1739815868646,-2009.2,0.00014109,2]
[353401406,1739815868659,-1615.34,0.00014109,2]
[353401407,1739815868669,-500.0,0.00014109,2]
[353401408,1739815868679,-500.0,0.00014109,2]
[353401409,1739815868689,-535.37,0.00014109,2]
[353401410,1739815868699,-1060.0,0.00014109,2]
[353401411,1739815868708,-512.19,0.00014109,2]
[353401412,1739815868718,-1404.72,0.00014109,2]
[353401413,1739815868729,-799.51,0.00014109,2]
[353401414,1739815868740,-2087.18,0.00014109,2]
[353401415,1739815868749,-500.0,0.00014109,2]
[353401416,1739815868759,-1446.79,0.00014109,2]
[353401417,1739815868768,-846.61,0.00014109,2]
[353401418,1739815868778,-713.92,0.00014109,2]
[353401419,1739815868788,-2283.81,0.00014109,2]
[353401420,1739815868799,-500.0,0.00014109,2]
[353401421,1739815868810,-500.0,0.00014109,2]
[353401422,1739815868819,-1112.79,0.00014109,2]
[353401423,1739815868829,-1608.4,0.00014109,2]
[353401424,1739815868839,-532.44,0.00014109,2]
[353401425,1739815868849,-1167.91,0.00014109,2]
[353401426,1739815868859,-500.0,0.00014109,2]
[353401427,1739815868870,-532.72,0.00014109,2]
[353401428,1739815868880,-526.92,0.00014109,2]
[353401429,1739815868890,-500.0,0.00014109,2]
[353401430,1739815868899,-827.23,0.00014109,2]
[353401431,1739815868910,-1013.33,0.00014109,2]
[353401432,1739815868920,-500.0,0.00014109,2]
[353401433,1739815868930,-1149.69,0.00014109,2]
[353401434,1739815868941,-1073.86,0.00014109,2]
[353401435,1739815868952,-1210.93,0.00014109,2]
[353401436,1739815868961,-1039.4,0.00014109,2]
[353401437,1739815868971,-714.31,0.00014109,2]
[353401438,1739815868980,-2005.82,0.00014109,2]
[353401439,1739815868991,-727.34,0.00014109,2]
[353401440,1739815869001,-959.95,0.00014109,2]
[353401441,1739815869013,-1713.83,0.00014109,2]
[353401442,1739815869023,-500.0,0.00014109,2]
[353401443,1739815869034,-1217.64,0.00014109,2]
[353401444,1739815869044,-500.0,0.00014109,2]
[353401445,1739815869056,-500.0,0.00014109,2]
[353401446,1739815869066,-1633.21,0.00014109,2]
[353401447,1739815869076,-1264.81,0.00014109,2]
[353401448,1739815869262,-1618.89,0.00014109,2]
[353401449,1739815869273,-500.0,0.00014109,2]
[353401450,1739815869283,-163.94247891,0.00014115,2]
[353401451,1739815869292,-500.0,0.00014137,2]
[353401452,1739815869302,-209.63,0.00014138,2]
[353401453,1739815869311,-207.0,0.0001415,2]
[353401454,1739815869320,-500.0,0.00014164,2]
[353401455,1739815869329,-500.0,0.00014173,2]
[353401456,1739815869339,-500.0,0.00014173,2]
[353401457,1739815869348,-500.59798759,0.00014173,2]
[353401458,1739815869358,-500.0,0.00014173,2]
[353401459,1739815869369,-193.98993342,0.00014173,2]
[353401460,1739815869379,-2714.44419174,0.00014173,2]
[353401461,1739815869389,-172.50882552,0.00014173,2]
[353401462,1739815869398,-2626.0645507,0.00014181,2]
[353401463,1739815869409,-680.21,0.0001419,2]
[353401464,1739815869419,-637.43,0.0001419,2]
[353401465,1739815869428,-1089.39,0.0001419,2]
[353401466,1739815869439,-1212.4,0.0001419,2]
[353401467,1739815869449,-1862.54,0.0001419,2]
[353401468,1739815869459,-4612.02,0.0001419,2]
[353401469,1739815869469,-1025.98,0.0001419,2]
[353401470,1739815869479,-913.35,0.0001419,2]
[353401471,1739815869490,-1384.74,0.0001419,2]
[353401472,1739815869501,-500.0,0.0001419,2]
[353401473,1739815869511,-1205.86,0.0001419,2]
[353401474,1739815869522,-1429.81,0.0001419,2]
[353401475,1739815869533,-1000.0,0.0001419,2]
[353401476,1739815869543,-1276.75,0.0001419,2]
[353401477,1739815869555,-1076.56,0.0001419,2]
[353401478,1739815869566,-1573.44,0.0001419,2]
[353401479,1739815869576,-700.77,0.0001419,2]
[353401480,1739815869586,-500.0,0.00014191,2]
[353401481,1739815869596,-500.0,0.00014191,2]
[353401482,1739815869606,-500.0,0.00014191,2]
[353401483,1739815869616,-500.0,0.00014191,2]
[353401484,1739815869625,-500.0,0.00014191,2]
[353401485,1739815869635,-500.0,0.00014191,2]
[353401486,1739815869644,-449.64,0.00014191,2]
[353401487,1739815869654,-500.0,0.00014191,2]
[353401488,1739815869666,-500.0,0.00014191,2]
[353401489,1739815869676,-1029.48,0.00014191,2]
[353401490,1739815869686,-504.67,0.00014191,2]
[353401491,1739815869697,-577.71,0.00014191,2]
[353401492,1739815869707,-659.19,0.00014191,2]
[353401493,1739815869716,-500.0,0.00014191,2]
[353401494,1739815869727,-697.7,0.00014191,2]
[353401495,1739815869738,-501.93,0.00014191,2]
[353401496,1739815869748,-500.0,0.00014191,2]
[353401497,1739815869758,-737.52,0.00014191,2]
[353401498,1739815869767,-500.0,0.00014191,2]
[353401499,1739815869777,-500.0,0.00014191,2]
[353401500,1739815869786,-500.0,0.00014191,2]
[353401501,1739815869798,-500.0,0.00014191,2]
[353401502,1739815869810,-724.27,0.00014191,2]
[353401503,1739815869820,-500.0,0.00014191,2]
[353401504,1739815869830,-500.0,0.00014191,2]
[353401505,1739815869839,-441.9,0.00014191,2]
[353401506,1739815869848,-692.38,0.00014191,2]
[353401507,1739815869858,-500.0,0.00014191,2]
[353401508,1739815869868,-500.0,0.00014191,2]
[353401509,1739815869878,-500.0,0.00014191,2]
[353401510,1739815869887,-500.0,0.00014191,2]
[353401511,1739815869896,-500.0,0.00014191,2]
[353401512,1739815869906,-351.2,0.00014191,2]
[353401513,1739815869916,-500.0,0.00014191,2]
[353401514,1739815869926,-500.0,0.00014191,2]
[353401515,1739815869935,-500.0,0.00014191,2]
[353401516,1739815869945,-500.0,0.00014191,2]
[353401517,1739815869955,-652.56,0.00014191,2]
[353401518,1739815869964,-500.0,0.00014191,2]
[353401519,1739815869974,-500.0,0.00014191,2]
[353401520,1739815869984,-500.0,0.00014191,2]
[353401521,1739815869994,-500.0,0.00014191,2]
[353401522,1739815870003,-506.07,0.00014191,2]
[353401523,1739815870013,-500.0,0.00014191,2]
[353401524,1739815870023,-627.55,0.00014191,2]
[353401525,1739815870033,-201.06318407,0.00014191,2]
[353401526,1739815870042,-571.18,0.00014191,2]
[353401527,1739815870052,-500.0,0.00014191,2]
[353401528,1739815870062,-507.51,0.00014191,2]
[353401529,1739815870071,-589.27,0.00014191,2]
[353401530,1739815870081,-500.0,0.00014191,2]
[353401531,1739815870090,-721.7,0.00014191,2]
[353401532,1739815870099,-500.0,0.00014191,2]
[353401533,1739815870108,-500.0,0.00014191,2]
[353401534,1739815870118,-500.0,0.00014191,2]
[353401535,1739815870127,-500.0,0.00014191,2]
[353401536,1739815870136,-500.0,0.00014191,2]
[353401537,1739815870146,-664.44,0.00014191,2]
[353401538,1739815870155,-500.0,0.00014191,2]
[353401539,1739815870164,-500.0,0.00014191,2]
[353401540,1739815870173,-527.83,0.00014191,2]
[353401541,1739815870183,-557.1,0.00014191,2]
[353401542,1739815870192,-500.0,0.00014191,2]
[353401543,1739815870201,-500.0,0.00014191,2]
[353401544,1739815870210,-621.01,0.00014191,2]
[353401545,1739815870219,-609.03,0.00014191,2]
[353401546,1739815870229,-660.07,0.00014191,2]
[353401547,1739815870238,-500.0,0.00014191,2]
[353401548,1739815870248,-500.0,0.00014191,2]
[353401549,1739815870258,-500.0,0.00014191,2]
[353401550,1739815870267,-685.59,0.00014191,2]
[353401551,1739815870277,-529.48,0.00014191,2]
[353401552,1739815870286,-500.0,0.00014191,2]
[353401553,1739815870295,-500.0,0.00014191,2]
[353401554,1739815870307,-500.0,0.00014191,2]
[353401555,1739815870316,-500.0,0.00014191,2]
[353401556,1739815870326,-879.53,0.00014191,2]
[353401557,1739815870335,-872.31,0.00014191,2]
[353401558,1739815870344,-500.0,0.00014191,2]
[353401559,1739815870354,-500.0,0.00014191,2]
[353401560,1739815870363,-500.0,0.00014191,2]
[353401561,1739815870373,-500.0,0.00014191,2]
[353401562,1739815870383,-548.33,0.00014191,2]
[353401563,1739815870393,-502.61,0.00014191,2]
[353401564,1739815870403,-884.35,0.00014191,2]
[353401565,1739815870413,-527.868759,0.00014191,2]
[353401566,1739815870423,-630.35,0.00014191,2]
[353401567,1739815870432,-507.26,0.00014191,2]
[353401568,1739815870442,-1128.77,0.00014191,2]
[353401569,1739815870452,-500.0,0.00014191,2]
[353401570,1739815870461,-500.0,0.00014191,2]
[353401571,1739815870470,-689.9,0.00014191,2]
[353401572,1739815870480,-500.0,0.00014191,2]
[353401573,1739815870489,-577.46926345,0.00014191,2]
[353401574,1739815870498,-504.07,0.00014191,2]
[353401575,1739815870509,-500.0,0.00014191,2]
[353401576,1739815870518,-500.0,0.00014191,2]
[353401577,1739815870527,-500.0,0.00014191,2]
[353401578,1739815870537,-610.26,0.00014191,2]
[353401579,1739815870547,-303.32,0.00014191,2]
[353401580,1739815870558,-500.0,0.00014191,2]
[353401581,1739815870567,-417.85623309,0.00014191,2]
[353401582,1739815870577,-500.0,0.00014191,2]
[353401583,1739815870586,-465.181699,0.00014191,2]
[353401584,1739815870596,-500.0,0.00014191,2]
[353401585,1739815870606,-461.23,0.00014191,2]
[353401586,1739815870615,-500.0,0.00014191,2]
[353401587,1739815870624,-500.0,0.00014191,2]
[353401588,1739815870633,-500.0,0.00014191,2]
[353401589,1739815870643,-500.0,0.00014191,2]
[353401590,1739815870653,-500.0,0.00014191,2]
[353401591,1739815870664,-560.89,0.00014191,2]
[353401592,1739815870674,-463.61,0.00014191,2]
[353401593,1739815870683,-500.0,0.00014191,2]
[353401594,1739815870693,-779.36,0.00014191,2]
[353401595,1739815870703,-500.0,0.00014191,2]
[353401596,1739815870713,-511.33,0.00014191,2]
[353401597,1739815870723,-500.0,0.00014191,2]
[353401598,1739815870733,-284.89,0.00014191,2]
[353401599,1739815870743,-500.0,0.00014191,2]
[353401600,1739815870753,-500.0,0.00014191,2]
[353401601,1739815870763,-723.45,0.00014191,2]
[353401602,1739815870772,-826.0,0.00014191,2]
[353401603,1739815870782,-500.0,0.00014191,2]
[353401604,1739815870791,-500.0,0.00014191,2]
[353401605,1739815870801,-500.0,0.00014191,2]
[353401606,1739815870811,-500.0,0.00014191,2]
[353401607,1739815870821,-500.0,0.00014191,2]
[353401608,1739815870831,-500.0,0.00014191,2]
[353401609,1739815870842,-500.0,0.00014191,2]
[353401610,1739815870851,-551.82,0.00014191,2]
[353401611,1739815870861,-500.0,0.00014191,2]
[353401612,1739815870871,-775.48,0.00014191,2]
[353401613,1739815870880,-676.02,0.00014191,2]
[353401614,1739815870890,-799.13,0.00014191,2]
[353401615,1739815870898,-500.0,0.00014191,2]
[353401616,1739815870907,-500.0,0.00014191,2]
[353401617,1739815870917,-500.0,0.00014191,2]
[353401618,1739815870926,-697.45,0.00014191,2]
[353401619,1739815870935,-527.52,0.00014191,2]
[353401620,1739815870945,-634.13,0.00014191,2]
[353401621,1739815870954,-500.0,0.00014191,2]
[353401622,1739815870963,-1087.97,0.00014191,2]
[353401623,1739815870972,-781.6,0.00014191,2]
[353401624,1739815870982,-500.0,0.00014191,2]
[353401625,1739815870995,-642.47,0.00014191,2]
[353401626,1739815871006,-500.0,0.00014191,2]
[353401627,1739815871016,-646.88,0.00014191,2]
[353401628,1739815871026,-500.0,0.00014191,2]
[353401629,1739815871036,-627.97,0.00014191,2]
[353401630,1739815871046,-500.0,0.00014191,2]
[353401631,1739815871057,-877.35,0.00014191,2]
[353401632,1739815871067,-500.0,0.00014191,2]
[353401633,1739815871076,-501.93,0.00014191,2]
[353401634,1739815871085,-2021.69,0.00014191,2]
[353401635,1739815871095,-500.0,0.00014191,2]
[353401636,1739815871105,-804.35,0.00014191,2]
[353401637,1739815871114,-1178.4,0.00014191,2]
[353401638,1739815871123,-2424.8,0.00014191,2]
[353401639,1739815871132,-713.08,0.00014191,2]
[353401640,1739815871142,-902.8,0.00014191,2]
[353401641,1739815871151,-500.0,0.00014191,2]
[353401642,1739815871160,-1659.27,0.00014191,2]
[353401643,1739815871169,-854.28,0.00014191,2]
[353401644,1739815871178,-707.88,0.00014191,2]
[353401645,1739815871188,-772.93,0.00014191,2]
[353401646,1739815871197,-500.0,0.00014191,2]
[353401647,1739815871206,-1197.12,0.00014191,2]
[353401648,1739815871215,-152.258352,0.00014191,2]
[353401649,1739815871224,-1865.74,0.00014191,2]
[353401650,1739815871234,-953.23,0.00014191,2]
[353401651,1739815871243,-500.0,0.00014191,2]
[353401652,1739815871253,-500.0,0.00014191,2]
[353401653,1739815871262,-565.36,0.00014191,2]
[353401654,1739815871272,-2885.55,0.00014191,2]
[353401655,1739815871281,-973.56,0.00014191,2]
[353401656,1739815871291,-803.15,0.00014191,2]
[353401657,1739815871300,-1385.68,0.00014191,2]
[353401658,1739815871310,-974.48,0.00014191,2]
[353401659,1739815871320,-816.48,0.00014191,2]
[353401660,1739815871330,-500.0,0.00014191,2]
[353401661,1739815871339,-922.79,0.00014191,2]
[353401662,1739815871348,-585.62,0.00014191,2]
[353401663,1739815871358,-500.0,0.00014191,2]
[353401664,1739815871368,-3073.59,0.00014191,2]
[353401665,1739815871377,-597.4,0.00014191,2]
[353401666,1739815871386,-1321.54,0.00014191,2]
[353401667,1739815871395,-1131.49,0.00014191,2]
[353401668,1739815871404,-500.0,0.00014191,2]
[353401669,1739815871415,-323.74,0.00014191,2]
[353401670,1739815871425,-1395.94,0.00014191,2]
[353401671,1739815871435,-329.13414086,0.00014191,2]
[353401672,1739815871445,-1265.98,0.00014191,2]
[353401673,1739815871454,-500.0,0.00014191,2]
[353401674,1739815871463,-500.0,0.00014191,2]
[353401675,1739815871473,-1422.73,0.00014191,2]
[353401676,1739815871482,-1473.58,0.00014191,2]
[353401677,1739815871491,-1479.13,0.00014191,2]
[353401678,1739815871501,-500.0,0.00014191,2]
[353401679,1739815871511,-1202.26,0.00014191,2]
[353401680,1739815871521,-1748.85,0.00014191,2]
[353401681,1739815871530,-1547.54,0.00014191,2]
[353401682,1739815871540,-2001.49,0.00014191,2]
[353401683,1739815871550,-500.0,0.00014191,2]
[353401684,1739815871560,-500.0,0.00014191,2]
[353401685,1739815871640,-1175.35,0.00014191,2]
[353401686,1739815871650,-2574.83,0.00014191,2]
[353401687,1739815871662,-1101.2,0.00014191,2]
[353401688,1739815871672,-500.0,0.00014191,2]
[353401689,1739815871681,-1324.81,0.00014191,2]
[353401690,1739815871691,-1077.14,0.00014191,2]
[353401691,1739815871702,-1691.48,0.00014191,2]
[353401692,1739815871712,-1466.29,0.00014191,2]
[353401693,1739815871722,-1601.82,0.00014191,2]
[353401694,1739815871731,-525.21,0.00014191,2]
[353401695,1739815871744,-1698.43,0.00014191,2]
[353401696,1739815871754,-500.0,0.00014191,2]
[353401697,1739815871764,-500.0,0.00014191,2]
[353401698,1739815871773,-1051.07,0.00014191,2]
[353401699,1739815871782,-1893.07,0.00014191,2]
[353401700,1739815871792,-1434.34,0.00014191,2]
[353401701,1739815871802,-1559.87,0.00014191,2]
[353401702,1739815871812,-4247.72,0.00014191,2]
[353401703,1739815871821,-500.0,0.00014191,2]
[353401704,1739815871831,-697.24,0.00014191,2]
[353401705,1739815871841,-500.0,0.00014191,2]